bitfinex/quotes_ETHUSD_20241116
["timestamp","ask_amount","ask_price","bid_price","bid_amount"]
[1731721635888,3.23248,3093.6,3093.1,0.8304]
[1731721636251,3.2326,3093.5,3093.1,0.8304]
[1731721636564,3.23258,3093.5,3093.1,0.8304]
[1731721637088,3.2323,3093.8,3093.1,0.8304]
[1731721637089,3.23237,3093.8,3093.2,0.89505443]
[1731721637257,3.23237,3093.8,3093.3,1.07069463]
[1731721637581,3.23237,3093.8,3093.5,0.8304]
[1731721637886,3.23237,3093.7,3093.5,0.8304]
[1731721639704,3.23218,3093.9,3093.5,0.8304]
[1731721640104,3.23234,3093.8,3093.5,0.8304]
[1731721640308,3.23245,3093.7,3093.5,0.8304]
[1731721640542,3.23247,3093.6,3093.5,0.8304]
[1731721640714,3.23233,3093.8,3093.5,0.8304]
[1731721640912,3.23244,3093.7,3093.5,0.8304]
[1731721641748,3.23247,3093.6,3093.5,0.8304]
[1731721643142,3.23233,3093.8,3093.5,0.8304]
[1731721643651,3.23247,3093.6,3093.5,0.8304]
[1731721644255,3.23233,3093.8,3093.5,0.8304]
[1731721644256,3.23237,3093.7,3093.5,0.8304]
[1731721645714,3.23237,3093.7,3092.8,0.74815487]
[1731721645715,4.2965482,3094.6,3093.6,3.23242]
[1731721645916,3.23168,3094.4,3093.7,0.8313]
[1731721646147,3.23195,3094.1,3093.7,0.8313]
[1731721646576,0.323168,3094.3,3093.7,0.8313]
[1731721646853,3.23201,3094.1,3093.7,0.8313]
[1731721648410,3.23176,3094.3,3093.7,0.8313]
[1731721649023,3.23185,3094.2,3093.7,0.8313]
[1731721649422,3.23156,3094.5,3093.9,3.2321]
[1731721649625,3.23136,3094.7,3094.1,0.8088]
[1731721649928,3.23115,3094.9,3094.2,3.23182]
[1731721650141,3.23115,3094.9,3094.3,4.04053]
[1731721650379,3.23096,3095.1,3094.4,3.2316]
[1731721650525,3.23096,3095.1,3094.6,0.8088]
[1731721650842,3.23119,3094.9,3094.6,0.8088]
[1731721651251,3.23096,3095.1,3094.6,0.8088]
[1731721651426,3.23101,3095.0,3094.6,0.8088]
[1731721652075,3.23115,3094.9,3094.6,0.8088]
[1731721652431,3.23096,3095.1,3094.6,0.8088]
[1731721652632,3.23077,3095.3,3094.7,0.7837]
[1731721653129,3.2308,3095.2,3094.7,0.7837]
[1731721653873,3.2308,3095.2,3094.7,1.2256155]
[1731721655360,3.2308,3095.2,3094.7,4.4569355]
[1731721655537,7.0113,3095.4,3094.8,0.7837]
[1731721655737,3.23076,3095.3,3094.8,0.7837]
[1731721656276,3.23093,3095.1,3094.8,0.7837]
[1731721657912,3.23071,3095.3,3094.8,0.7837]
[1731721658207,3.23081,3095.2,3094.8,0.7837]
[1731721658370,3.23028,3095.7,3094.8,0.7837]
[1731721658705,3.2309,3095.2,3094.8,0.7837]
[1731721659916,3.23064,3095.4,3094.8,0.7837]
[1731721659917,3.23018,3095.8,3094.9,0.7837]
[1731721660080,3.23018,3095.8,3095.3,0.7837]
[1731721661635,10.5252082,3096.4,3095.3,0.7837]
[1731721661636,3.23048,3095.6,3095.3,0.7837]
[1731721661808,3.2306,3095.4,3095.3,0.7837]
[1731721662362,0.55,3095.9,3095.3,0.7837]
[1731721662809,3.23024,3095.8,3095.3,0.7837]
[1731721663468,3.2303,3095.7,3095.3,0.7837]
[1731721663869,3.23024,3095.8,3095.3,0.7837]
[1731721664309,3.23,3096.0,3095.3,0.7837]
[1731721664310,6.46007,3096.0,3095.3,4.01976726]
[1731721664478,6.46007,3096.0,3095.4,0.7837]
[1731721664799,6.46007,3096.0,3095.5,0.7837]
[1731721664800,3.23,3096.0,3095.5,0.7837]
[1731721665620,3.23,3096.0,3095.5,0.84830395]
[1731721665917,3.23,3096.0,3095.6,0.7837]
[1731721668723,3.23008,3095.9,3095.6,0.7837]
[1731721669070,3.23018,3095.8,3095.6,0.7837]
[1731721669271,3.23,3096.0,3095.6,0.7837]
[1731721671320,3.22979,3096.2,3095.6,0.7837]
[1731721671525,3.22987,3096.1,3095.8,0.7805]
[1731721672313,3.22974,3096.3,3095.8,0.7805]
[1731721673020,3.22974,3096.3,3095.7,3.23027]
[1731721673021,3.22974,3096.3,3095.9,0.7805]
[1731721675100,3.22946,3096.5,3096.1,0.7805]
[1731721675294,3.22936,3096.6,3096.1,0.7805]
[1731721676804,3.22952,3096.5,3096.1,0.7805]
[1731721677223,6.45905,3096.5,3096.1,0.7805]
[1731721677530,3.22952,3096.5,3096.1,0.7805]
[1731721678333,0.645881,3096.5,3095.9,0.7805]
[1731721678534,0.645881,3096.5,3095.7,0.7805]
[1731721678535,0.7603,3096.4,3095.7,0.7805]
[1731721678689,3.23018,3095.8,3095.7,0.7805]
[1731721679535,3.22998,3096.0,3095.7,0.7805]
[1731721679931,6.46004,3096.0,3095.7,0.7805]
[1731721680105,3.22998,3096.0,3095.7,0.7805]
[1731721680292,3.22956,3096.4,3095.7,0.7805]
[1731721680503,3.22956,3096.4,3095.9,0.7805]
[1731721680804,3.22966,3096.3,3096.0,0.7805]
[1731721682998,3.22966,3096.3,3096.0,0.7795464]
[1731721683199,3.22986,3096.1,3096.0,0.7795464]
[1731721683546,3.5165482,3096.7,3095.1,3.86809338]
[1731721683547,3.23038,3095.7,3095.1,3.86809338]
[1731721683703,3.23038,3095.7,3095.2,0.65923696]
[1731721684036,3.23038,3095.7,3095.3,0.24015762]
[1731721685545,3.23038,3095.7,3095.4,0.24015762]
[1731721685712,3.23038,3095.7,3095.2,0.41907934]
[1731721685904,3.23038,3095.7,3095.3,0.24032474]
[1731721686105,3.23038,3095.7,3095.5,0.7805]
[1731721686452,3.23061,3095.4,3095.0,0.7805]
[1731721686603,3.23061,3095.4,3095.1,0.24053285]
[1731721686807,3.23061,3095.4,3094.7,3.23127]
[1731721686808,3.23047,3095.6,3095.2,1.00563285]
[1731721687032,3.23047,3095.6,3095.2,0.7651]
[1731721687451,3.2307,3095.3,3095.2,0.7651]
[1731721688144,3.23068,3095.4,3095.2,0.7651]
[1731721691242,3.2307,3095.3,3095.2,0.7651]
[1731721691448,3.2307,3095.3,3095.2,1.00581841]
[1731721691835,3.2307,3095.3,3095.2,0.7651]
[1731721692560,3.23059,3095.5,3095.2,1.00580351]
[1731721692848,3.2306,3095.4,3095.2,1.00580351]
[1731721695147,3.23049,3095.5,3095.2,1.00580351]
[1731721695742,3.23012,3095.9,3095.2,0.7651]
[1731721695942,3.23012,3095.9,3094.9,0.01]
[1731721695943,3.22994,3096.1,3095.4,3.2305]
[1731721696202,3.22971,3096.3,3095.6,0.7651]
[1731721696372,3.22977,3096.2,3095.7,3.23026]
[1731721697650,3.22955,3096.4,3095.8,3.23017]
[1731721698642,3.22966,3096.3,3095.8,3.23017]
[1731721698858,3.22966,3096.3,3095.8,3.952733]
[1731721699220,3.22966,3096.3,3095.8,0.722563]
[1731721699385,3.22966,3096.3,3095.6,3.99546]
[1731721699386,3.22979,3096.2,3095.6,3.99546]
[1731721699596,3.22979,3096.2,3095.7,3.23027]
[1731721699788,3.22955,3096.4,3095.6,0.7651]
[1731721699991,0.7941,3096.8,3095.9,0.7651]
[1731721700344,3.22974,3096.3,3095.9,0.7651]
[1731721700545,3.22993,3096.1,3095.9,0.7651]
[1731721701053,3.22993,3096.1,3095.9,1.0451]
[1731721701445,3.22973,3096.3,3095.9,1.0451]
[1731721701697,3.22982,3096.2,3095.9,0.7651]
[1731721701849,3.22974,3096.3,3095.9,0.7651]
[1731721702387,3.22968,3096.3,3095.9,0.7651]
[1731721703503,3.2295,3096.5,3095.9,0.7651]
[1731721703656,3.77929,3096.7,3095.9,0.7651]
[1731721703657,3.22936,3096.6,3096.0,0.7651]
[1731721703856,3.22936,3096.6,3096.0,3.99501]
[1731721704382,3.22929,3096.7,3096.0,3.99501]
[1731721704566,3.22929,3096.7,3096.1,3.73390114]
[1731721705096,3.22942,3096.6,3096.1,0.4394535]
[1731721705856,3.22942,3096.6,3096.1,0.7194535]
[1731721706070,3.22922,3096.8,3096.1,0.7194535]
[1731721706302,3.22926,3096.7,3096.2,0.47145135]
[1731721706656,6.45859,3096.7,3096.2,0.47145135]
[1731721706853,3.22926,3096.7,3096.2,0.47145135]
[1731721707296,3.22914,3096.8,3096.3,0.7903]
[1731721708085,3.22938,3096.6,3096.3,0.7903]
[1731721708925,3.22955,3096.4,3096.3,0.7903]
[1731721709078,3.22955,3096.4,3096.1,0.28]
[1731721709275,3.22976,3096.2,3096.1,0.28]
[1731721709891,3.22976,3096.2,3096.0,0.7903]
[1731721710932,3.22986,3096.1,3096.0,0.7903]
[1731721711215,3.22976,3096.2,3096.0,0.7903]
[1731721711581,3.22986,3096.1,3096.0,0.7903]
[1731721712227,3.22986,3096.1,3095.4,3.87118164]
[1731721712228,3.22986,3096.1,3095.5,0.7529]
[1731721712380,3.22986,3096.1,3095.7,0.28]
[1731721712585,3.23029,3095.7,3095.5,0.7529]
[1731721713210,3.23039,3095.6,3095.5,0.7529]
[1731721713410,3.23039,3095.6,3095.1,1.40954259]
[1731721713689,3.23051,3095.5,3095.1,1.40954259]
[1731721713929,0.777,3096.0,3095.1,1.40954259]
[1731721713930,3.23029,3095.7,3095.1,1.40954259]
[1731721714102,3.23029,3095.7,3095.1,4.64042259]
[1731721714281,3.23012,3095.9,3095.2,3.29540988]
[1731721714486,3.23012,3095.9,3095.3,0.7529]
[1731721714812,3.22987,3096.1,3095.5,0.7529]
[1731721715386,3.22987,3096.1,3095.5,3.98337]
[1731721717284,4.00666,3096.3,3095.5,3.98337]
[1731721717285,4.00666,3096.3,3095.6,3.2303]
[1731721717715,3.22983,3096.2,3095.6,3.2303]
[1731721717918,3.22983,3096.2,3095.7,0.06459877]
[1731721718135,3.22983,3096.2,3095.7,0.06459958]
[1731721718136,3.22976,3096.2,3095.7,0.06459958]
[1731721718316,3.22967,3096.3,3095.7,3.29486958]
[1731721718486,6.22915,3096.8,3095.9,3.23002]
[1731721718487,3.22913,3096.8,3095.9,3.23002]
[1731721718684,3.22962,3096.4,3096.0,0.06459282]
[1731721718912,4.02857,3096.3,3095.8,4.03639]
[1731721719125,3.22983,3096.2,3095.8,0.8063]
[1731721719315,3.552813,3096.2,3095.8,0.8063]
[1731721719488,3.22983,3096.2,3095.8,0.8063]
[1731721719684,3.22988,3096.1,3095.8,0.8063]
[1731721720023,3.22983,3096.2,3095.8,0.8063]
[1731721722130,3.23007,3095.9,3095.8,0.8063]
[1731721722693,3.2299,3096.1,3095.8,0.8063]
[1731721723607,3.23003,3096.0,3095.8,0.8063]
[1731721724129,3.23026,3095.8,3095.3,3.23067]
[1731721725025,3.23026,3095.8,3095.1,4.69378259]
[1731721725195,3.23026,3095.8,3095.2,3.51078]
[1731721725397,3.23052,3095.5,3095.2,0.28]
[1731721725602,3.23052,3095.5,3095.1,0.8063]
[1731721726348,0.725921,3095.8,3095.1,0.8063]
[1731721726349,3.23046,3095.6,3095.1,0.8063]
[1731721726633,3.23066,3095.4,3095.1,0.8063]
[1731721727319,0.7989,3095.9,3095.1,0.8063]
[1731721727633,3.23067,3095.4,3095.1,0.8063]
[1731721727799,6.46136,3095.4,3095.1,0.8063]
[1731721727996,3.23067,3095.4,3095.1,0.8063]
[1731721730518,3.23044,3095.6,3095.1,0.8063]
[1731721730950,3.2306,3095.4,3095.1,0.8063]
[1731721731445,3.23044,3095.6,3095.1,0.8063]
[1731721731606,3.23044,3095.6,3095.2,0.8079]
[1731721732739,3.23018,3095.8,3095.2,0.8079]
[1731721732943,3.23035,3095.7,3095.2,0.8079]
[1731721733655,3.23042,3095.6,3095.2,0.8079]
[1731721738925,6.46048,3095.8,3095.2,0.8079]
[1731721739460,3.23023,3095.8,3095.2,4.03868]
[1731721740368,3.23008,3095.9,3095.3,3.23064]
[1731721740719,4.00615,3096.2,3095.4,3.23057]
[1731721740922,4.00615,3096.2,3095.5,0.8079]
[1731721741153,7.23554,3096.4,3095.6,3.23033]
[1731721741359,3.22967,3096.3,3095.7,3.23025]
[1731721741521,4.729454,3096.4,3095.7,3.23025]
[1731721741722,3.22935,3096.6,3095.9,0.8079]
[1731721741929,3.22959,3096.4,3095.9,0.8079]
[1731721742158,0.322959,3096.3,3095.9,0.8079]
[1731721742523,3.22976,3096.2,3095.9,0.8079]
[1731721742868,3.22959,3096.4,3095.9,0.8079]
[1731721744275,3.22959,3096.4,3095.9,4.03796]
[1731721744933,3.22939,3096.6,3095.9,3.23006]
[1731721745129,3.22945,3096.5,3096.0,0.8079]
[1731721745337,3.22976,3096.3,3096.0,0.8079]
[1731721745532,3.2298,3096.2,3096.0,0.8079]
[1731721746468,3.22955,3096.4,3095.8,0.8057]
[1731721746676,0.403075,3096.3,3095.8,0.8057]
[1731721746835,3.2298,3096.2,3095.8,0.8057]
[1731721748740,0.403075,3096.3,3095.8,0.8057]
[1731721748951,3.23015,3095.9,3095.6,0.7942]
[1731721749130,3.23015,3095.9,3094.9,3.01]
[1731721749131,3.23056,3095.5,3095.0,0.7942]
[1731721750191,3.23077,3095.3,3095.2,0.02]
[1731721751333,3.23077,3095.3,3095.0,0.7942]
[1731721751759,6.46114,3095.5,3095.0,0.7942]
[1731721751965,8.60374244,3097.6,3095.6,3.23029]
[1731721751966,3.22963,3096.4,3095.6,3.23029]
[1731721752178,3.22977,3096.2,3095.7,4.08906986]
[1731721752483,0.7701,3096.7,3095.7,4.08906986]
[1731721752484,3.22967,3096.3,3095.7,0.7942]
[1731721752669,3.22977,3096.2,3095.7,0.7942]
[1731721752842,3.22977,3096.2,3095.7,1.196666]
[1731721753038,3.22967,3096.3,3095.7,4.426896]
[1731721753250,3.22949,3096.5,3095.9,3.23004]
[1731721753549,3.22956,3096.4,3095.7,3.40341375]
[1731721753746,3.22956,3096.4,3095.8,0.0645958]
[1731721754251,3.22956,3096.4,3095.7,6.63361375]
[1731721754452,3.22956,3096.4,3095.8,3.29475578]
[1731721754881,3.22956,3096.4,3095.8,3.23016]
[1731721755187,3.22949,3096.5,3095.7,3.40338375]
[1731721755188,3.22966,3096.3,3095.7,3.40338375]
[1731721755342,3.22966,3096.3,3095.8,3.23017]
[1731721755564,3.22966,3096.3,3095.7,0.17318375]
[1731721755872,3.22977,3096.2,3095.9,0.64736472]
[1731721756175,3.22977,3096.2,3095.8,0.7942]
[1731721756769,3.22957,3096.4,3095.8,0.7942]
[1731721757119,6.4592,3096.4,3095.8,0.7942]
[1731721757255,0.399959,3096.5,3095.8,4.08890588]
[1731721757674,3.22963,3096.4,3095.8,4.02431]
[1731721758365,3.22936,3096.6,3095.8,4.02431]
[1731721758551,3.22966,3096.3,3095.8,4.02431]
[1731721759052,3.22966,3096.3,3095.8,0.7942]
[1731721759256,3.22972,3096.3,3095.8,0.7942]
[1731721759608,3.23005,3096.0,3095.8,0.7942]
[1731721760395,3.22981,3096.2,3095.8,0.7942]
[1731721760396,6.45965,3096.2,3095.8,0.7942]
[1731721760566,3.22999,3096.0,3095.8,0.7942]
[1731721764964,7.22975,3096.2,3095.8,0.7942]
[1731721765166,3.22993,3096.1,3095.8,0.7942]
[1731721767374,3.22997,3096.0,3095.8,0.7942]
[1731721768408,3.22997,3096.0,3095.4,0.7931]
[1731721768409,3.23007,3095.9,3095.4,0.7931]
[1731721768567,3.23007,3095.9,3095.5,0.28]
[1731721769091,4.432206,3096.2,3095.5,0.28]
[1731721769287,0.432286,3096.2,3095.5,3.51047]
[1731721769499,3.22925,3096.7,3096.0,3.22987]
[1731721769662,3.22919,3096.8,3096.3,0.7931]
[1731721769867,3.22935,3096.6,3096.3,0.7931]
[1731721771210,3.22946,3096.5,3096.3,0.7931]
[1731721772023,3.22919,3096.8,3096.3,0.7931]
[1731721772024,3.22933,3096.7,3096.3,0.7931]
[1731721772384,3.22945,3096.5,3096.3,0.7931]
[1731721772581,3.22936,3096.6,3096.0,3.2299]
[1731721772582,3.22936,3096.6,3096.0,0.7931]
[1731721772788,3.22986,3096.1,3095.7,0.7931]
[1731721772986,3.23008,3095.9,3095.7,0.7931]
[1731721773618,3.23018,3095.8,3095.7,0.7931]
[1731721774189,3.23018,3095.8,3095.5,1.0731]
[1731721774426,3.2303,3095.7,3095.5,1.0731]
[1731721774736,3.2303,3095.7,3095.5,1.70839062]
[1731721776301,3.2303,3095.7,3095.5,1.42839062]
[1731721778839,3.2303,3095.7,3095.5,0.63529062]
[1731721779133,3.876343,3095.7,3094.8,3.23121]
[1731721779329,3.23058,3095.5,3095.1,0.7931]
[1731721780331,4.05018,3095.5,3095.1,0.7931]
[1731721781237,3.2307,3095.3,3095.1,0.7931]
[1731721781740,4.05018,3095.5,3095.1,0.7931]
[1731721781935,3.2306,3095.4,3095.1,0.7931]
[1731721782106,0.8196,3095.5,3095.1,0.7931]
[1731721782310,0.8196,3095.7,3095.2,3.23078]
[1731721782494,0.8196,3096.2,3095.6,3.23029]
[1731721782831,3.22982,3096.2,3095.7,0.85770013]
[1731721782994,0.8196,3096.5,3095.4,0.7931]
[1731721783201,3.2302,3095.8,3095.4,0.7931]
[1731721783509,4.04957,3096.0,3095.4,4.02368]
[1731721783837,3.22993,3096.1,3095.5,3.23049]
[1731721784503,0.404879,3096.8,3095.7,4.0233]
[1731721784504,3.22958,3096.4,3095.7,4.0233]
[1731721784707,3.22967,3096.3,3095.7,4.0233]
[1731721785396,3.22967,3096.3,3095.7,0.7931]
[1731721785595,3.22967,3096.3,3095.9,0.64389267]
[1731721786395,4.04906,3096.5,3095.9,0.64389267]
[1731721786602,0.404906,3096.4,3095.9,3.87396267]
[1731721786799,0.404906,3096.4,3095.9,0.64389267]
[1731721787104,3.634466,3096.4,3095.9,0.64389267]
[1731721787318,3.22968,3096.3,3095.9,0.64389267]
[1731721788604,3.634466,3096.4,3095.9,0.64389267]
[1731721788805,3.22977,3096.2,3095.9,0.64389267]
[1731721789735,3.22977,3096.2,3095.7,4.0233]
[1731721789940,3.22995,3096.1,3095.7,0.7931]
[1731721790233,3.22995,3096.1,3095.8,0.63677653]
[1731721790435,3.91226666,3096.1,3095.8,0.63677653]
[1731721791848,3.23001,3096.0,3095.8,0.63677653]
[1731721792010,0.68231666,3096.1,3095.8,0.63677653]
[1731721792342,3.22957,3096.4,3095.8,3.86689653]
[1731721793225,3.22972,3096.3,3095.8,0.63677653]
[1731721793832,3.22957,3096.4,3095.8,0.63677653]
[1731721794047,3.2297,3096.3,3095.8,3.86693653]
[1731721794564,3.22957,3096.4,3095.8,3.86693653]
[1731721794717,3.552527,3096.4,3095.8,3.86693653]
[1731721794917,3.552527,3096.4,3095.7,4.02338]
[1731721796037,6.782167,3096.4,3095.7,4.02338]
[1731721796452,6.782167,3096.4,3095.7,4.66791224]
[1731721796875,3.22974,3096.3,3095.7,4.02338]
[1731721797052,4.04311335,3096.3,3095.7,4.02338]
[1731721797645,3.22977,3096.2,3095.7,4.02338]
[1731721798079,3.23001,3096.0,3095.7,0.7931]
[1731721799129,3.23008,3095.9,3095.6,0.64543622]
[1731721799342,0.646009,3095.8,3095.6,0.64543622]
[1731721799936,3.23001,3096.0,3095.6,0.64543622]
[1731721800461,1.60022891,3097.3,3095.8,4.04988]
[1731721800668,0.01,3098.1,3095.8,4.04988]
[1731721800669,0.15636326,3098.1,3096.3,1.35146653]
[1731721800875,3.22837,3097.6,3097.2,0.8197]
[1731721801072,3.22913,3096.9,3096.7,0.8197]
[1731721801226,3.22913,3096.9,3096.5,0.64874566]
[1731721801227,3.22905,3096.9,3096.5,0.64874566]
[1731721801432,4.58032653,3097.1,3096.4,0.8197]
[1731721801433,3.22925,3096.7,3096.4,0.8197]
[1731721801767,3.22929,3096.7,3096.4,0.8197]
[1731721802141,3.22906,3096.9,3096.4,0.8197]
[1731721802541,3.22916,3096.8,3096.4,0.8197]
[1731721803376,3.68702265,3097.0,3096.4,0.8197]
[1731721803543,3.22885,3097.1,3096.4,4.04924]
[1731721803868,3.22893,3097.0,3096.4,4.04924]
[1731721804249,3.22885,3097.1,3096.4,4.04924]
[1731721804650,3.22893,3097.0,3096.4,4.04924]
[1731721805545,3.22885,3097.1,3096.4,0.8197]
[1731721805747,3.22904,3096.9,3096.4,0.8197]
[1731721807739,3.22945,3096.5,3096.4,0.8197]
[1731721808074,3.22945,3096.5,3095.6,3.23034]
[1731721808075,3.22984,3096.2,3096.0,0.774]
[1731721808842,2.92722962,3096.7,3095.5,0.774]
[1731721809038,3.23028,3095.8,3095.5,0.774]
[1731721811258,3.23028,3095.8,3095.2,0.774]
[1731721811464,3.2302,3095.8,3095.2,0.774]
[1731721811664,3.23004,3096.0,3095.4,3.23059]
[1731721811879,3.22994,3096.1,3095.4,3.23059]
[1731721811880,3.2301,3095.9,3095.4,3.23059]
[1731721812052,3.2301,3095.9,3095.3,3.94918758]
[1731721812254,6.45989,3096.1,3095.4,3.23057]
[1731721812481,3.2297,3096.3,3095.5,3.29509611]
[1731721812654,3.2297,3096.3,3095.8,3.23016]
[1731721812871,3.22928,3096.7,3096.0,4.00391]
[1731721813075,3.22928,3096.7,3096.1,0.24092014]
[1731721813384,3.22928,3096.7,3096.0,4.00389]
[1731721813385,3.22908,3096.9,3096.2,0.24092014]
[1731721813584,3.22908,3096.9,3096.2,3.22969]
[1731721814090,3.22918,3096.8,3096.2,3.22969]
[1731721814412,3.22924,3096.7,3096.2,3.22969]
[1731721815289,3.22936,3096.6,3096.1,0.400389]
[1731721815449,0.37361296,3097.2,3096.3,0.774]
[1731721815450,3.22907,3096.9,3096.3,0.774]
[1731721815866,3.22926,3096.7,3096.3,0.774]
[1731721816215,0.33008426,3097.1,3096.3,0.774]
[1731721816216,3.22893,3097.0,3096.3,0.774]
[1731721816412,3.22951,3096.5,3096.3,0.774]
[1731721816567,3.22929,3096.7,3096.3,0.774]
[1731721817664,3.22907,3096.9,3096.3,0.774]
[1731721817869,3.22907,3096.9,3096.4,3.47033882]
[1731721818106,3.22907,3096.9,3096.4,3.22955]
[1731721818685,3.22907,3096.9,3096.3,0.774]
[1731721818968,3.58498543,3096.9,3096.4,0.24076618]
[1731721819188,3.22925,3096.7,3096.3,0.774]
[1731721819578,0.35591543,3096.9,3096.3,0.774]
[1731721819579,3.22953,3096.5,3096.3,0.774]
[1731721823298,3.22959,3096.4,3095.8,0.774]
[1731721823498,3.22979,3096.2,3095.9,0.24090852]
[1731721823705,3.22979,3096.2,3095.8,0.774]
[1731721823706,3.22979,3096.2,3096.0,0.24087507]
[1731721823862,3.22979,3096.2,3095.8,0.774]
[1731721824065,3.22959,3096.4,3095.9,0.24087119]
[1731721824294,3.22959,3096.4,3096.0,0.24087119]
[1731721824463,3.22936,3096.6,3096.1,0.774]
[1731721824664,3.70232962,3097.1,3096.3,3.22959]
[1731721824665,3.22904,3096.9,3096.3,3.22959]
[1731721824898,3.22895,3097.0,3096.5,0.774]
[1731721825111,3.22895,3097.0,3096.6,0.0645805]
[1731721825275,3.22895,3097.0,3096.5,0.83858043]
[1731721825476,3.22895,3097.0,3096.6,0.2407086]
[1731721825783,3.22895,3097.0,3096.5,0.83858043]
[1731721826263,3.22895,3097.0,3096.6,0.24069521]
[1731721826464,3.22895,3097.0,3096.5,0.83858248]
[1731721826685,3.22895,3097.0,3096.6,0.24069881]
[1731721826885,3.22882,3097.2,3096.6,3.22934]
[1731721827092,3.22882,3097.2,3096.8,0.7713]
[1731721827266,3.22855,3097.4,3096.8,0.7713]
[1731721827590,3.22842,3097.5,3097.0,3.22892]
[1731721827796,3.22842,3097.5,3097.1,0.7713]
[1731721829419,3.22809,3097.8,3097.1,4.0001]
[1731721829633,3.22829,3097.7,3097.1,4.0001]
[1731721830408,3.22832,3097.6,3097.1,4.0001]
[1731721831190,6.45628,3097.8,3097.2,3.22871]
[1731721831915,3.22809,3097.8,3097.2,3.22871]
[1731721832119,3.99778,3098.4,3097.4,0.7713]
[1731721832302,3.99778,3098.4,3097.5,3.29292038]
[1731721832303,0.06609159,3097.7,3097.5,3.29292038]
[1731721832624,3.22757,3098.3,3097.5,3.29292038]
[1731721832792,0.06606508,3097.6,3097.5,4.06422038]
[1731721833123,3.22781,3098.1,3097.5,4.30439151]
[1731721833325,3.22781,3098.1,3097.5,4.06422038]
[1731721833490,0.06631362,3098.0,3097.5,4.70090576]
[1731721834329,0.06631362,3098.0,3097.5,5.18991775]
[1731721834700,0.06631362,3098.0,3097.5,1.89699737]
[1731721834927,3.29423362,3098.0,3097.5,1.89699737]
[1731721835132,3.29423362,3098.0,3097.5,1.40798538]
[1731721835721,0.06631362,3098.0,3097.5,4.63635538]
[1731721836027,0.7703,3098.1,3097.6,0.06455921]
[1731721836189,3.2282,3097.7,3097.1,0.7713]
[1731721836386,3.228,3097.9,3097.2,3.22871]
[1731721836624,0.0659945,3097.6,3097.4,0.643009]
[1731721836798,3.2281,3097.8,3097.4,0.643009]
[1731721837004,0.36946624,3098.0,3097.4,0.643009]
[1731721837005,0.06593235,3097.5,3097.4,0.643009]
[1731721837219,3.22796,3098.0,3097.4,0.643009]
[1731721837421,0.06594028,3097.5,3097.4,0.643009]
[1731721837627,3.22796,3098.0,3097.4,1.414309]
[1731721837834,0.06592262,3097.5,3097.4,1.414309]
[1731721838130,0.06592262,3097.5,3097.4,5.4298979]
[1731721838333,3.22782,3098.1,3097.4,5.4298979]
[1731721838539,0.06592262,3097.5,3097.4,4.642739]
[1731721838708,3.22782,3098.1,3097.5,3.22839]
[1731721838907,3.22782,3098.1,3097.4,4.70729894]
[1731721838908,0.06592262,3097.5,3097.4,4.642739]
[1731721839110,3.22782,3098.1,3097.4,4.642739]
[1731721839300,3.22782,3098.1,3097.5,3.22839]
[1731721839501,0.06624184,3098.0,3097.4,5.4298819]
[1731721839740,3.22768,3098.2,3097.6,3.22827]
[1731721839896,3.22768,3098.2,3097.4,4.642739]
[1731721840104,3.2941467,3098.1,3097.4,4.642739]
[1731721840839,3.2941467,3098.1,3097.5,3.2284]
[1731721841036,3.2941467,3098.1,3097.5,3.5084]
[1731721841342,0.0663067,3098.1,3097.5,0.28]
[1731721841636,0.0663067,3098.1,3097.4,4.642809]
[1731721841846,0.0663067,3098.1,3097.4,5.4299579]
[1731721842147,3.22799,3097.9,3097.4,5.4299579]
[1731721842343,3.2942164,3098.0,3097.4,5.4299579]
[1731721842518,0.06612214,3097.8,3097.4,4.642809]
[1731721842701,3.22797,3098.0,3097.4,4.642809]
[1731721843040,3.2283,3097.6,3097.5,0.28]
[1731721843448,3.29429604,3097.6,3097.5,0.28]
[1731721843802,0.06599604,3097.6,3097.5,1.0513]
[1731721844032,0.06599604,3097.6,3097.5,0.83586058]
[1731721844223,0.06599604,3097.6,3097.5,4.06427058]
[1731721844420,3.22788,3098.1,3097.5,4.85785254]
[1731721844616,0.0659933,3097.6,3097.5,4.85785254]
[1731721844827,3.2279,3098.0,3097.5,4.85785254]
[1731721845027,0.06599177,3097.6,3097.5,4.85785254]
[1731721845228,3.2279,3098.0,3097.5,4.79329196]
[1731721845432,0.06599177,3097.6,3097.5,4.79329196]
[1731721845785,3.2279,3098.0,3097.5,4.79329196]
[1731721845940,0.06599177,3097.6,3097.5,4.79329196]
[1731721846266,3.2279,3098.0,3097.5,4.79329196]
[1731721846830,0.06617819,3097.9,3097.6,0.06455926]
[1731721847980,3.22812,3097.8,3097.5,1.56488196]
[1731721848155,3.29424092,3097.8,3097.5,0.7713]
[1731721849844,3.29424092,3097.8,3097.4,0.643009]
[1731721849845,3.22837,3097.6,3097.4,0.643009]
[1731721850235,0.06593296,3097.5,3097.4,0.643009]
[1731721852778,3.29434296,3097.5,3097.4,0.643009]
[1731721853685,0.06593296,3097.5,3097.4,0.643009]
[1731721854278,0.06593296,3097.5,3097.4,0.8834772]
[1731721854651,0.06592598,3097.5,3097.4,0.8834772]
[1731721854847,3.22826,3097.7,3097.4,0.643009]
[1731721855071,3.22826,3097.7,3097.4,0.88353796]
[1731721855277,0.06598812,3097.6,3097.4,0.643009]
[1731721855484,0.06598812,3097.6,3097.5,0.7852]
[1731721855781,3.22816,3097.8,3097.5,1.02583995]
[1731721855981,0.06599024,3097.6,3097.5,0.7852]
[1731721856255,0.06599024,3097.6,3097.5,1.02585202]
[1731721856569,3.22816,3097.8,3097.5,1.02582039]